[Event "*** Titled Tuesday Blitz"]
[Site "Chess.com"]
[Date "2021.03.02"]
[Round "10"]
[White "frenchpin"]
[Black "andrzej"]
[Result "1-0"]
[WhiteElo "2492"]
[BlackElo "2353"]
[TimeControl "180+1"]
[EndTime "11:59:48 PST"]
[Termination "frenchpin won by checkmate"]

1. e4 {[%clk 0:03:00.9]} 1... c5 {[%clk 0:02:59.9]} 2. Nf3 {[%clk 0:03:01.1]}
2... Nc6 {[%clk 0:03:00.6]} 3. c3 {[%clk 0:03:01]} 3... Nf6 {[%clk 0:02:58.7]}
4. e5 {[%clk 0:03:00.7]} 4... Nd5 {[%clk 0:02:59.3]} 5. d4 {[%clk 0:03:01.6]}
5... cxd4 {[%clk 0:02:55.1]} 6. cxd4 {[%clk 0:03:02.5]} 6... d6 {[%clk
0:02:52.8]} 7. Bc4 {[%clk 0:02:50.3]} 7... e6 {[%clk 0:02:52.7]} 8. O-O {[%clk
0:02:49.8]} 8... Be7 {[%clk 0:02:53.1]} 9. Qe2 {[%clk 0:02:49.5]} 9... O-O
{[%clk 0:02:53.4]} 10. Qe4 {[%clk 0:02:50.1]} 10... Ndb4 {[%clk 0:02:23.8]} 11.
exd6 {[%clk 0:02:25.6]} 11... Qxd6 {[%clk 0:02:17.3]} 12. Bf4 {[%clk 0:02:14.8]}
12... Qd8 {[%clk 0:02:16.7]} 13. Nc3 {[%clk 0:02:14.4]} 13... Bd7 {[%clk
0:01:42.3]} 14. a3 {[%clk 0:02:05.4]} 14... Na6 {[%clk 0:01:39.2]} 15. Bd3
{[%clk 0:01:59.6]} 15... g6 {[%clk 0:01:34.9]} 16. b4 {[%clk 0:01:30]} 16... Nc7
{[%clk 0:01:22.2]} 17. Rfe1 {[%clk 0:01:26.5]} 17... Bf6 {[%clk 0:01:16.8]} 18.
Rad1 {[%clk 0:01:26]} 18... Nd5 {[%clk 0:01:12.3]} 19. Nxd5 {[%clk 0:01:21.7]}
19... exd5 {[%clk 0:01:13.2]} 20. Qxd5 {[%clk 0:01:21.8]} 20... Bg4 {[%clk
0:01:13.9]} 21. Qxd8 {[%clk 0:00:50.9]} 21... Raxd8 {[%clk 0:01:14.8]} 22. Be2
{[%clk 0:00:44.8]} 22... Bxf3 {[%clk 0:01:03.4]} 23. Bxf3 {[%clk 0:00:45.7]}
23... Nxd4 {[%clk 0:00:55.4]} 24. Kf1 {[%clk 0:00:43.1]} 24... Nxf3 {[%clk
0:00:54.3]} 25. gxf3 {[%clk 0:00:44]} 25... Rxd1 {[%clk 0:00:52]} 26. Rxd1
{[%clk 0:00:43.7]} 26... Rd8 {[%clk 0:00:52.6]} 27. Rc1 {[%clk 0:00:20.3]} 27...
g5 {[%clk 0:00:51.2]} 28. Be3 {[%clk 0:00:19.4]} 28... b6 {[%clk 0:00:28.6]} 29.
Rc7 {[%clk 0:00:18.2]} 29... Ra8 {[%clk 0:00:29.1]} 30. Rd7 {[%clk 0:00:17.7]}
30... Kg7 {[%clk 0:00:23.8]} 31. Ke2 {[%clk 0:00:17.8]} 31... Kg6 {[%clk
0:00:23.5]} 32. Kd3 {[%clk 0:00:17.9]} 32... b5 {[%clk 0:00:23.7]} 33. Rd6
{[%clk 0:00:15.6]} 33... a5 {[%clk 0:00:21.8]} 34. Bd4 {[%clk 0:00:11.6]} 34...
Rd8 {[%clk 0:00:13.3]} 35. Rxf6+ {[%clk 0:00:10]} 35... Kh5 {[%clk 0:00:13]} 36.
Rxf7 {[%clk 0:00:10.1]} 36... axb4 {[%clk 0:00:12.3]} 37. Rxh7+ {[%clk
0:00:08.7]} 37... Kg6 {[%clk 0:00:12.4]} 38. Rg7+ {[%clk 0:00:09.3]} 38... Kh6
{[%clk 0:00:12.4]} 39. axb4 {[%clk 0:00:07.3]} 39... Rf8 {[%clk 0:00:11.1]} 40.
Ke4 {[%clk 0:00:06.6]} 40... Kh5 {[%clk 0:00:10.7]} 41. Rb7 {[%clk 0:00:05.5]}
41... Rf4+ {[%clk 0:00:10.5]} 42. Ke3 {[%clk 0:00:06]} 42... Rf5 {[%clk
0:00:10.5]} 43. Rb6 {[%clk 0:00:06]} 43... Rd5 {[%clk 0:00:09.5]} 44. Re6 {[%clk
0:00:05.8]} 44... Rd8 {[%clk 0:00:10]} 45. Re5 {[%clk 0:00:06]} 45... Rb8 {[%clk
0:00:10]} 46. f4 {[%clk 0:00:06.2]} 46... Kh4 {[%clk 0:00:08.2]} 47. fxg5 {[%clk
0:00:06.5]} 47... Kh5 {[%clk 0:00:08.2]} 48. f4 {[%clk 0:00:07]} 48... Kg6
{[%clk 0:00:08.9]} 49. Ke4 {[%clk 0:00:07.4]} 49... Rd8 {[%clk 0:00:07.4]} 50.
h4 {[%clk 0:00:07.5]} 50... Kh5 {[%clk 0:00:07.5]} 51. Rxb5 {[%clk 0:00:07.2]}
51... Kxh4 {[%clk 0:00:07.5]} 52. g6 {[%clk 0:00:07.6]} 52... Rg8 {[%clk
0:00:07.3]} 53. Rg5 {[%clk 0:00:07.7]} 53... Re8+ {[%clk 0:00:05.8]} 54. Be5
{[%clk 0:00:07.5]} 54... Rg8 {[%clk 0:00:04.8]} 55. g7 {[%clk 0:00:07.7]} 55...
Kh3 {[%clk 0:00:03.6]} 56. Kf3 {[%clk 0:00:07.7]} 56... Kh4 {[%clk 0:00:04.5]}
57. b5 {[%clk 0:00:07.6]} 57... Rc8 {[%clk 0:00:02.2]} 58. g8=Q {[%clk
0:00:06.8]} 58... Rxg8 {[%clk 0:00:02.7]} 59. Rxg8 {[%clk 0:00:07.7]} 59... Kh5
{[%clk 0:00:03.5]} 60. Ke4 {[%clk 0:00:07.4]} 60... Kh6 {[%clk 0:00:04.4]} 61.
Kf5 {[%clk 0:00:07.1]} 61... Kh7 {[%clk 0:00:05.3]} 62. Rh8# {[%clk 0:00:07.5]}
1-0

[Event "*** Titled Tuesday Blitz"]
[Site "Chess.com"]
[Date "2021.03.02"]
[Round "10"]
[White "JiiHart"]
[Black "chesslh19"]
[Result "0-1"]
[WhiteElo "2072"]
[BlackElo "2235"]
[TimeControl "180+1"]
[EndTime "11:59:49 PST"]
[Termination "chesslh19 won by resignation"]

1. e4 {[%clk 0:03:00.9]} 1... e5 {[%clk 0:02:56.1]} 2. Nf3 {[%clk 0:03:00.5]}
2... Nf6 {[%clk 0:02:56.7]} 3. d4 {[%clk 0:03:00]} 3... exd4 {[%clk 0:02:55.8]}
4. e5 {[%clk 0:02:59.9]} 4... Ne4 {[%clk 0:02:56.4]} 5. Qxd4 {[%clk 0:02:59.7]}
5... d5 {[%clk 0:02:57.1]} 6. exd6 {[%clk 0:02:59.4]} 6... Nxd6 {[%clk
0:02:57.8]} 7. Nc3 {[%clk 0:02:59.4]} 7... Nc6 {[%clk 0:02:57.9]} 8. Qf4 {[%clk
0:02:59.4]} 8... Nf5 {[%clk 0:02:58.5]} 9. Bb5 {[%clk 0:02:35.7]} 9... Bd6
{[%clk 0:02:57.9]} 10. Qe4+ {[%clk 0:02:29.7]} 10... Qe7 {[%clk 0:02:57.7]} 11.
Bxc6+ {[%clk 0:02:09.4]} 11... bxc6 {[%clk 0:02:57]} 12. Qxe7+ {[%clk
0:02:09.4]} 12... Nxe7 {[%clk 0:02:49.1]} 13. Be3 {[%clk 0:01:59.5]} 13... O-O
{[%clk 0:02:41.9]} 14. Nd4 {[%clk 0:01:47.6]} 14... Bb7 {[%clk 0:02:32.1]} 15.
O-O {[%clk 0:01:37.1]} 15... Nd5 {[%clk 0:02:16.4]} 16. Nd1 {[%clk 0:01:05.5]}
16... Rfe8 {[%clk 0:01:51.6]} 17. Nf5 {[%clk 0:00:48.8]} 17... Bf8 {[%clk
0:01:40.8]} 18. c4 {[%clk 0:00:39.9]} 18... Nxe3 {[%clk 0:01:37.5]} 19. Ndxe3
{[%clk 0:00:35.3]} 19... g6 {[%clk 0:01:32.1]} 20. Ng3 {[%clk 0:00:26.8]} 20...
Rad8 {[%clk 0:01:30.5]} 21. Rad1 {[%clk 0:00:25.7]} 21... f5 {[%clk 0:01:14.7]}
22. Rxd8 {[%clk 0:00:25.1]} 22... Rxd8 {[%clk 0:01:14.3]} 23. Rd1 {[%clk
0:00:24.7]} 23... Rxd1+ {[%clk 0:01:07.6]} 24. Nxd1 {[%clk 0:00:24.3]} 24... Kf7
{[%clk 0:01:07.5]} 25. b3 {[%clk 0:00:24.2]} 25... Ke6 {[%clk 0:01:02.6]} 26.
Nc3 {[%clk 0:00:21.7]} 26... Bg7 {[%clk 0:00:59.1]} 27. Nge2 {[%clk 0:00:21.5]}
27... Bxc3 {[%clk 0:00:35.4]} 28. Nxc3 {[%clk 0:00:20.9]} 28... Ke5 {[%clk
0:00:36]} 29. Ne2 {[%clk 0:00:18.8]} 29... c5 {[%clk 0:00:34.9]} 30. f3 {[%clk
0:00:18.4]} 30... f4 {[%clk 0:00:27.1]} 31. Kf2 {[%clk 0:00:18.8]} 31... Bc8
{[%clk 0:00:27.3]} 32. Ke1 {[%clk 0:00:17.9]} 32... Bf5 {[%clk 0:00:26.9]} 33.
Kd2 {[%clk 0:00:18.3]} 33... g5 {[%clk 0:00:26.7]} 34. Kc3 {[%clk 0:00:16.2]}
34... Bb1 {[%clk 0:00:22.9]} 35. Nc1 {[%clk 0:00:15.1]} 35... h5 {[%clk
0:00:18.9]} 36. Kb2 {[%clk 0:00:13.8]} 36... Bf5 {[%clk 0:00:18.3]} 37. Kc3
{[%clk 0:00:13.5]} 37... g4 {[%clk 0:00:18.1]} 38. Nd3+ {[%clk 0:00:13]} 38...
Bxd3 {[%clk 0:00:17.5]} 39. Kxd3 {[%clk 0:00:13.2]} 39... gxf3 {[%clk
0:00:14.1]} 40. gxf3 {[%clk 0:00:13.4]} 40... Kf5 {[%clk 0:00:14.5]} 41. a3
{[%clk 0:00:12.4]} 41... Ke5 {[%clk 0:00:10.4]} 42. h4 {[%clk 0:00:12.3]} 42...
Kf5 {[%clk 0:00:08.1]} 43. b4 {[%clk 0:00:11.1]} 43... cxb4 {[%clk 0:00:07.4]}
44. axb4 {[%clk 0:00:11.5]} 44... Ke5 {[%clk 0:00:08.2]} 45. Kc3 {[%clk
0:00:11]} 45... c6 {[%clk 0:00:07]} 46. Kb3 {[%clk 0:00:09.1]} 46... Kd4 {[%clk
0:00:06.1]} 47. b5 {[%clk 0:00:04.6]} 47... cxb5 {[%clk 0:00:06]} 48. cxb5
{[%clk 0:00:04.9]} 48... Kc5 {[%clk 0:00:05.7]} 49. Ka4 {[%clk 0:00:05.1]} 49...
Kc4 {[%clk 0:00:03.8]} 50. Ka5 {[%clk 0:00:05.3]} 50... Kc5 {[%clk 0:00:04.2]}
51. Ka6 {[%clk 0:00:05.6]} 51... Kb4 {[%clk 0:00:04.1]} 52. Kxa7 {[%clk
0:00:05.6]} 52... Kxb5 {[%clk 0:00:04.6]} 53. Kb7 {[%clk 0:00:06.4]} 53... Kc4
{[%clk 0:00:05]} 54. Kc7 {[%clk 0:00:07]} 54... Kd3 {[%clk 0:00:05.5]} 55. Kd6
{[%clk 0:00:07.7]} 55... Ke3 {[%clk 0:00:05.9]} 56. Ke5 {[%clk 0:00:08.2]} 56...
Kxf3 {[%clk 0:00:06.4]} 57. Kf5 {[%clk 0:00:08.9]} 57... Kg3 {[%clk 0:00:06.4]}
58. Kg5 {[%clk 0:00:09.5]} 58... f3 {[%clk 0:00:06.9]} 59. Kxh5 {[%clk 0:00:10]}
59... f2 {[%clk 0:00:07.8]} 60. Kg6 {[%clk 0:00:10.4]} 60... f1=Q {[%clk
0:00:08.3]} 61. h5 {[%clk 0:00:11.1]} 61... Qf8 {[%clk 0:00:08.3]} 62. h6 {[%clk
0:00:09.5]} 62... Qh8 {[%clk 0:00:08]} 63. h7 {[%clk 0:00:09.1]} 63... Kh4
{[%clk 0:00:07.3]} 64. Kh6 {[%clk 0:00:08.8]} 64... Kg4 {[%clk 0:00:07.6]} 65.
Kg6 {[%clk 0:00:08.9]} 65... Kf4 {[%clk 0:00:07.8]} 66. Kh6 {[%clk 0:00:08.5]}
66... Kf5 {[%clk 0:00:07.6]} 0-1

[Event "*** Titled Tuesday Blitz"]
[Site "Chess.com"]
[Date "2021.03.02"]
[Round "10"]
[White "Meri-Arabidze"]
[Black "ErikRonka"]
[Result "1-0"]
[WhiteElo "2627"]
[BlackElo "2460"]
[TimeControl "180+1"]
[EndTime "11:59:50 PST"]
[Termination "Meri-Arabidze won by resignation"]

1. d4 {[%clk 0:03:00.9]} 1... d5 {[%clk 0:02:58.9]} 2. Nf3 {[%clk 0:03:00.2]}
2... Nf6 {[%clk 0:02:58.7]} 3. c4 {[%clk 0:03:00.2]} 3... c6 {[%clk 0:02:58.8]}
4. Nc3 {[%clk 0:03:00.6]} 4... e6 {[%clk 0:02:59.1]} 5. e3 {[%clk 0:03:01]} 5...
Nbd7 {[%clk 0:02:59.4]} 6. Qc2 {[%clk 0:03:01.3]} 6... Bd6 {[%clk 0:02:59.3]} 7.
Be2 {[%clk 0:03:01.6]} 7... O-O {[%clk 0:02:59.2]} 8. O-O {[%clk 0:03:01.7]}
8... dxc4 {[%clk 0:02:59.7]} 9. a4 {[%clk 0:03:01.3]} 9... c5 {[%clk 0:02:57.3]}
10. Bxc4 {[%clk 0:03:01.2]} 10... cxd4 {[%clk 0:02:57.1]} 11. exd4 {[%clk
0:03:02.1]} 11... b6 {[%clk 0:02:54.5]} 12. Re1 {[%clk 0:02:49.9]} 12... Bb7
{[%clk 0:02:53.6]} 13. Ne5 {[%clk 0:02:49.9]} 13... h6 {[%clk 0:02:13.1]} 14.
Qe2 {[%clk 0:02:44.2]} 14... Rc8 {[%clk 0:02:08.8]} 15. Bd3 {[%clk 0:02:39]}
15... Nxe5 {[%clk 0:01:49.9]} 16. dxe5 {[%clk 0:02:39.9]} 16... Bxe5 {[%clk
0:01:50.3]} 17. Qxe5 {[%clk 0:01:59]} 17... Qxd3 {[%clk 0:01:49.5]} 18. Re3
{[%clk 0:01:25.4]} 18... Qf5 {[%clk 0:01:18.3]} 19. Qxf5 {[%clk 0:01:17.1]}
19... exf5 {[%clk 0:01:19.2]} 20. Re7 {[%clk 0:01:10.7]} 20... Rfe8 {[%clk
0:01:06.8]} 21. Rxe8+ {[%clk 0:01:10.6]} 21... Rxe8 {[%clk 0:00:51.6]} 22. Be3
{[%clk 0:01:11.5]} 22... Ng4 {[%clk 0:00:24.1]} 23. Bf4 {[%clk 0:00:48.1]} 23...
g5 {[%clk 0:00:19.3]} 24. Bd6 {[%clk 0:00:44.9]} 24... Rd8 {[%clk 0:00:17.5]}
25. Rd1 {[%clk 0:00:34.7]} 25... Nf6 {[%clk 0:00:16.9]} 26. f3 {[%clk
0:00:27.1]} 26... Ne8 {[%clk 0:00:15.5]} 27. Be5 {[%clk 0:00:24.4]} 27... Rxd1+
{[%clk 0:00:16.4]} 28. Nxd1 {[%clk 0:00:24.9]} 28... f6 {[%clk 0:00:16.8]} 29.
Bb8 {[%clk 0:00:24.8]} 29... a6 {[%clk 0:00:16.8]} 30. Nc3 {[%clk 0:00:25.2]}
30... Kf7 {[%clk 0:00:13.5]} 31. Ba7 {[%clk 0:00:24.9]} 31... Nd6 {[%clk
0:00:09.1]} 32. Bxb6 {[%clk 0:00:24.3]} 32... Nc4 {[%clk 0:00:09.4]} 33. a5
{[%clk 0:00:22.1]} 33... Nxb2 {[%clk 0:00:09.2]} 34. Kf2 {[%clk 0:00:21.5]}
34... Ke6 {[%clk 0:00:09.7]} 35. g3 {[%clk 0:00:19.7]} 35... Nc4 {[%clk
0:00:08.4]} 36. Na4 {[%clk 0:00:18.3]} 36... Kd5 {[%clk 0:00:06.6]} 37. Nc5
{[%clk 0:00:17.9]} 37... Nxb6 {[%clk 0:00:03.4]} 38. Nxb7 {[%clk 0:00:18.1]}
38... Nc4 {[%clk 0:00:03.8]} 39. Nd8 {[%clk 0:00:17.5]} 39... Nxa5 {[%clk
0:00:02.9]} 40. Nf7 {[%clk 0:00:18.1]} 40... Nc4 {[%clk 0:00:02.7]} 41. Nxh6
{[%clk 0:00:18.1]} 41... a5 {[%clk 0:00:03.2]} 42. Ng8 {[%clk 0:00:18.5]} 42...
a4 {[%clk 0:00:03.2]} 43. Nxf6+ {[%clk 0:00:18.7]} 43... Kd4 {[%clk 0:00:03.8]}
44. h4 {[%clk 0:00:12.7]} 44... gxh4 {[%clk 0:00:02.9]} 45. gxh4 {[%clk
0:00:13.6]} 45... a3 {[%clk 0:00:03.3]} 46. h5 {[%clk 0:00:13.5]} 46... a2
{[%clk 0:00:03.7]} 47. h6 {[%clk 0:00:14.4]} 47... a1=Q {[%clk 0:00:04.2]} 48.
h7 {[%clk 0:00:15.2]} 48... Qa2+ {[%clk 0:00:04.6]} 49. Kg3 {[%clk 0:00:15.1]}
49... Qa8 {[%clk 0:00:04.3]} 50. Ng8 {[%clk 0:00:15.3]} 50... Qb8+ {[%clk
0:00:04.7]} 51. f4 {[%clk 0:00:15.6]} 51... Ke3 {[%clk 0:00:03.6]} 52. h8=Q
{[%clk 0:00:14.8]} 52... Qxf4+ {[%clk 0:00:04.5]} 53. Kh3 {[%clk 0:00:14.7]}
53... Ne5 {[%clk 0:00:04]} 54. Nf6 {[%clk 0:00:13.4]} 54... Qf3+ {[%clk
0:00:02.4]} 55. Kh2 {[%clk 0:00:13.7]} 55... Qf2+ {[%clk 0:00:01.8]} 56. Kh3
{[%clk 0:00:14]} 56... Qf3+ {[%clk 0:00:01.6]} 57. Kh2 {[%clk 0:00:14.2]} 57...
Qf4+ {[%clk 0:00:02.1]} 58. Kh1 {[%clk 0:00:14.3]} 58... Nf3 {[%clk 0:00:01.7]}
59. Nd5+ {[%clk 0:00:13.5]} 59... Ke4 {[%clk 0:00:01.7]} 60. Nxf4 {[%clk
0:00:14.4]} 60... Kxf4 {[%clk 0:00:02.1]} 61. Qh6+ {[%clk 0:00:14.5]} 61... Kg3
{[%clk 0:00:01.7]} 62. Qg7+ {[%clk 0:00:14.5]} 62... Kf2 {[%clk 0:00:01.9]} 63.
Qf7 {[%clk 0:00:14.1]} 63... Nd4 {[%clk 0:00:02.8]} 64. Qf6 {[%clk 0:00:13.8]}
64... f4 {[%clk 0:00:03.7]} 65. Qxd4+ {[%clk 0:00:13.5]} 65... Ke2 {[%clk
0:00:04.2]} 66. Qxf4 {[%clk 0:00:13.5]} 1-0

[Event "*** Titled Tuesday Blitz"]
[Site "Chess.com"]
[Date "2021.03.02"]
[Round "10"]
[White "mhebden"]
[Black "FMLorneTwitch"]
[Result "0-1"]
[WhiteElo "2512"]
[BlackElo "2448"]
[TimeControl "180+1"]
[EndTime "11:59:55 PST"]
[Termination "FMLorneTwitch won on time"]

1. d4 {[%clk 0:03:00.9]} 1... Nf6 {[%clk 0:02:59]} 2. Nf3 {[%clk 0:02:56.1]}
2... d5 {[%clk 0:02:57.3]} 3. c4 {[%clk 0:02:55.5]} 3... e6 {[%clk 0:02:55.2]}
4. Bg5 {[%clk 0:02:55.1]} 4... h6 {[%clk 0:02:52.2]} 5. Bxf6 {[%clk 0:02:50.1]}
5... Qxf6 {[%clk 0:02:53.1]} 6. Nc3 {[%clk 0:02:46.2]} 6... Bb4 {[%clk
0:02:45.3]} 7. Qb3 {[%clk 0:02:42.8]} 7... Bxc3+ {[%clk 0:02:35]} 8. Qxc3 {[%clk
0:02:41.9]} 8... c6 {[%clk 0:02:34.4]} 9. e3 {[%clk 0:02:40]} 9... Nd7 {[%clk
0:02:34.2]} 10. Rd1 {[%clk 0:02:31.6]} 10... O-O {[%clk 0:02:23.2]} 11. Be2
{[%clk 0:02:30.9]} 11... dxc4 {[%clk 0:02:23]} 12. Bxc4 {[%clk 0:02:30]} 12...
c5 {[%clk 0:02:16.1]} 13. O-O {[%clk 0:02:25.9]} 13... Nb6 {[%clk 0:02:08.1]}
14. Bb3 {[%clk 0:02:22.2]} 14... cxd4 {[%clk 0:02:06.7]} 15. Rxd4 {[%clk
0:02:20.9]} 15... Bd7 {[%clk 0:02:04.1]} 16. Qa5 {[%clk 0:02:09.1]} 16... Bc6
{[%clk 0:01:50.6]} 17. Ne5 {[%clk 0:01:57.9]} 17... Rfc8 {[%clk 0:01:40.5]} 18.
Rfd1 {[%clk 0:01:50.6]} 18... Bd5 {[%clk 0:01:29.3]} 19. Nd3 {[%clk 0:01:46.1]}
19... Bxb3 {[%clk 0:01:24.7]} 20. axb3 {[%clk 0:01:47]} 20... Rc2 {[%clk
0:01:20]} 21. Qe5 {[%clk 0:01:42.5]} 21... Qxe5 {[%clk 0:01:02.2]} 22. Nxe5
{[%clk 0:01:41.7]} 22... Rxb2 {[%clk 0:01:02.8]} 23. h4 {[%clk 0:01:36.8]} 23...
Rxb3 {[%clk 0:00:52]} 24. Rd8+ {[%clk 0:01:34.7]} 24... Rxd8 {[%clk 0:00:51.1]}
25. Rxd8+ {[%clk 0:01:35.1]} 25... Kh7 {[%clk 0:00:52]} 26. Nxf7 {[%clk
0:01:34.4]} 26... Kg6 {[%clk 0:00:42.1]} 27. Ne5+ {[%clk 0:01:30.1]} 27... Kf6
{[%clk 0:00:39]} 28. Ng4+ {[%clk 0:01:22.8]} 28... Ke7 {[%clk 0:00:38.1]} 29.
Rg8 {[%clk 0:01:20.5]} 29... Kf7 {[%clk 0:00:36.4]} 30. Rb8 {[%clk 0:01:18.3]}
30... Nd7 {[%clk 0:00:35]} 31. Rd8 {[%clk 0:01:11.7]} 31... Ke7 {[%clk
0:00:31.8]} 32. Rg8 {[%clk 0:01:11.6]} 32... Kf7 {[%clk 0:00:32]} 33. Rd8 {[%clk
0:01:11.5]} 33... Nf6 {[%clk 0:00:27.7]} 34. Ne5+ {[%clk 0:01:07.5]} 34... Ke7
{[%clk 0:00:28.1]} 35. Rc8 {[%clk 0:01:07]} 35... Kd6 {[%clk 0:00:25]} 36. f4
{[%clk 0:01:01.4]} 36... a5 {[%clk 0:00:23.2]} 37. Ra8 {[%clk 0:00:55.4]} 37...
b6 {[%clk 0:00:22.6]} 38. Kf2 {[%clk 0:00:53]} 38... Kd5 {[%clk 0:00:19]} 39.
Kf3 {[%clk 0:00:51.1]} 39... Kc5 {[%clk 0:00:17.2]} 40. Ke2 {[%clk 0:00:45.5]}
40... Nd5 {[%clk 0:00:16.4]} 41. Rc8+ {[%clk 0:00:35.1]} 41... Kb5 {[%clk
0:00:14.4]} 42. Nc4 {[%clk 0:00:33.6]} 42... a4 {[%clk 0:00:13.5]} 43. Nd6+
{[%clk 0:00:29.6]} 43... Kb4 {[%clk 0:00:13.4]} 44. Rc4+ {[%clk 0:00:25.4]}
44... Ka5 {[%clk 0:00:13.1]} 45. Re4 {[%clk 0:00:24.4]} 45... a3 {[%clk
0:00:12.6]} 46. Rxe6 {[%clk 0:00:22.3]} 46... a2 {[%clk 0:00:12.2]} 47. Re8
{[%clk 0:00:19.7]} 47... Rb2+ {[%clk 0:00:10.9]} 48. Kf3 {[%clk 0:00:18.9]}
48... Kb4 {[%clk 0:00:11.3]} 49. Ra8 {[%clk 0:00:17.3]} 49... Nc3 {[%clk
0:00:11.5]} 50. Rxa2 {[%clk 0:00:06.9]} 50... Rxa2 {[%clk 0:00:12.4]} 51. Nf5
{[%clk 0:00:05.9]} 51... h5 {[%clk 0:00:10.3]} 52. Nxg7 {[%clk 0:00:05.6]} 52...
Ra3 {[%clk 0:00:10.1]} 53. Nxh5 {[%clk 0:00:06]} 53... Nd5 {[%clk 0:00:10.1]}
54. Nf6 {[%clk 0:00:05.7]} 54... Nxf6 {[%clk 0:00:09.2]} 55. g4 {[%clk
0:00:04.6]} 55... Nd5 {[%clk 0:00:09.1]} 56. g5 {[%clk 0:00:05]} 56... Rxe3+
{[%clk 0:00:08.8]} 57. Kg4 {[%clk 0:00:05.2]} 57... Re4 {[%clk 0:00:09.2]} 58.
g6 {[%clk 0:00:05.2]} 58... Rxf4+ {[%clk 0:00:09.2]} 59. Kg5 {[%clk 0:00:05.2]}
59... Rf1 {[%clk 0:00:10.1]} 60. h5 {[%clk 0:00:05.4]} 60... Rg1+ {[%clk
0:00:10]} 61. Kf5 {[%clk 0:00:04.7]} 61... Ne7+ {[%clk 0:00:09.7]} 62. Kf6
{[%clk 0:00:04.7]} 62... Nxg6 {[%clk 0:00:10.1]} 63. hxg6 {[%clk 0:00:05.2]}
63... Kc3 {[%clk 0:00:10.4]} 64. Ke5 {[%clk 0:00:04.3]} 64... b5 {[%clk
0:00:10.4]} 65. Kd5 {[%clk 0:00:04.7]} 65... Rxg6 {[%clk 0:00:09.6]} 66. Kc5
{[%clk 0:00:04.7]} 66... b4 {[%clk 0:00:10.5]} 67. Kb5 {[%clk 0:00:04.8]} 67...
Rg1 {[%clk 0:00:11.4]} 68. Ka4 {[%clk 0:00:05.2]} 68... b3 {[%clk 0:00:12.3]}
69. Ka3 {[%clk 0:00:05]} 69... b2 {[%clk 0:00:13.2]} 70. Ka4 {[%clk 0:00:04.5]}
70... b1=Q {[%clk 0:00:12.2]} 71. Ka5 {[%clk 0:00:04.4]} 71... Rg2 {[%clk
0:00:12.3]} 0-1

[Event "*** Titled Tuesday Blitz"]
[Site "Chess.com"]
[Date "2021.03.02"]
[Round "10"]
[White "Natalya_Buksa"]
[Black "Vugar_Manafov"]
[Result "1/2-1/2"]
[WhiteElo "2526"]
[BlackElo "2640"]
[TimeControl "180+1"]
[EndTime "11:59:56 PST"]
[Termination "Game drawn by agreement"]

1. d4 {[%clk 0:02:59.2]} 1... Nf6 {[%clk 0:02:58.6]} 2. Nc3 {[%clk 0:02:58.9]}
2... e6 {[%clk 0:02:56.7]} 3. e4 {[%clk 0:02:50.3]} 3... Bb4 {[%clk 0:02:50.7]}
4. Bd3 {[%clk 0:02:45.3]} 4... d6 {[%clk 0:02:39.4]} 5. Ne2 {[%clk 0:02:44]}
5... e5 {[%clk 0:02:28.1]} 6. O-O {[%clk 0:02:26.7]} 6... Nc6 {[%clk 0:02:24.1]}
7. d5 {[%clk 0:02:23.7]} 7... Ne7 {[%clk 0:02:23.7]} 8. a3 {[%clk 0:02:18.9]}
8... Bxc3 {[%clk 0:02:20]} 9. Nxc3 {[%clk 0:02:18.2]} 9... O-O {[%clk
0:02:20.4]} 10. Ne2 {[%clk 0:02:08.7]} 10... Nd7 {[%clk 0:02:16.9]} 11. c4
{[%clk 0:02:05.4]} 11... f5 {[%clk 0:02:13.6]} 12. f3 {[%clk 0:02:05.2]} 12...
Nf6 {[%clk 0:01:40.2]} 13. b4 {[%clk 0:01:54]} 13... Qe8 {[%clk 0:01:23.3]} 14.
Nc3 {[%clk 0:01:38.2]} 14... Qh5 {[%clk 0:01:16.8]} 15. c5 {[%clk 0:01:19.4]}
15... Ng6 {[%clk 0:01:00.9]} 16. Nb5 {[%clk 0:01:12.1]} 16... Ne8 {[%clk
0:00:53.2]} 17. Be3 {[%clk 0:00:59.8]} 17... a6 {[%clk 0:00:51.2]} 18. Nc3
{[%clk 0:00:57.7]} 18... Nf6 {[%clk 0:00:47.8]} 19. cxd6 {[%clk 0:00:55.3]}
19... cxd6 {[%clk 0:00:42.1]} 20. b5 {[%clk 0:00:55.5]} 20... Nh4 {[%clk
0:00:28.6]} 21. f4 {[%clk 0:00:45.8]} 21... fxe4 {[%clk 0:00:20.1]} 22. Qxh5
{[%clk 0:00:32.2]} 22... Nxh5 {[%clk 0:00:21]} 23. Nxe4 {[%clk 0:00:31.7]} 23...
Nf5 {[%clk 0:00:21.6]} 24. Bd2 {[%clk 0:00:24.5]} 24... axb5 {[%clk 0:00:18.9]}
25. fxe5 {[%clk 0:00:23.3]} 25... dxe5 {[%clk 0:00:19.2]} 26. g4 {[%clk
0:00:23]} 26... Nd4 {[%clk 0:00:17.7]} 27. Rxf8+ {[%clk 0:00:20.6]} 27... Kxf8
{[%clk 0:00:18.6]} 28. Rf1+ {[%clk 0:00:20.9]} 28... Nf4 {[%clk 0:00:17.8]} 29.
Bxf4 {[%clk 0:00:19.2]} 29... exf4 {[%clk 0:00:18.7]} 30. Rxf4+ {[%clk
0:00:19.3]} 30... Ke7 {[%clk 0:00:19.3]} 31. Nf2 {[%clk 0:00:13.2]} 31... Nb3
{[%clk 0:00:18.3]} 32. Rb4 {[%clk 0:00:12.8]} 32... Nc5 {[%clk 0:00:18.4]} 33.
Rxb5 {[%clk 0:00:12.4]} 33... Nxd3 {[%clk 0:00:18.1]} 34. Nxd3 {[%clk
0:00:12.4]} 34... Rxa3 {[%clk 0:00:18.7]} 35. Nf2 {[%clk 0:00:11.5]} 35... Ra4
{[%clk 0:00:15.8]} 36. h3 {[%clk 0:00:11.3]} 36... Kd6 {[%clk 0:00:16.1]} 37.
Kg2 {[%clk 0:00:11.7]} 37... Rf4 {[%clk 0:00:15.9]} 38. Kg3 {[%clk 0:00:11.6]}
38... g5 {[%clk 0:00:16.6]} 39. Nd1 {[%clk 0:00:05.7]} 39... Rd4 {[%clk
0:00:16]} 40. Ne3 {[%clk 0:00:06.2]} 40... Rd3 {[%clk 0:00:16.4]} 41. Kf2 {[%clk
0:00:06.1]} 41... Rd4 {[%clk 0:00:15.6]} 42. Rb6+ {[%clk 0:00:05.9]} 42... Kc5
{[%clk 0:00:14.9]} 43. Rb1 {[%clk 0:00:04.5]} 43... Kd6 {[%clk 0:00:12.8]} 44.
Kf3 {[%clk 0:00:04.6]} 44... Bd7 {[%clk 0:00:13]} 45. Rxb7 {[%clk 0:00:04.1]}
45... Rd3 {[%clk 0:00:13.2]} 46. Rb6+ {[%clk 0:00:04]} 46... Ke5 {[%clk
0:00:12.4]} 47. Rh6 {[%clk 0:00:02.9]} 47... Kd4 {[%clk 0:00:12.4]} 48. Rxh7
{[%clk 0:00:01.5]} 48... Rxe3+ {[%clk 0:00:12.8]} 49. Kf2 {[%clk 0:00:02.4]}
49... Bb5 {[%clk 0:00:12.7]} 50. Rg7 {[%clk 0:00:02.7]} 50... Re5 {[%clk
0:00:13.1]} 51. d6 {[%clk 0:00:03.1]} 51... Rd5 {[%clk 0:00:13.8]} 52. d7 {[%clk
0:00:03.7]} 52... Bxd7 {[%clk 0:00:13.3]} 53. Kg3 {[%clk 0:00:04.3]} 53... Ke4
{[%clk 0:00:12.5]} 54. h4 {[%clk 0:00:04.8]} 54... Rd3+ {[%clk 0:00:12.5]} 55.
Kh2 {[%clk 0:00:05]} 55... gxh4 {[%clk 0:00:13.1]} 56. g5 {[%clk 0:00:05.5]}
56... h3 {[%clk 0:00:12.3]} 57. g6 {[%clk 0:00:05.6]} 57... Rd2+ {[%clk
0:00:12.8]} 58. Kg3 {[%clk 0:00:03.6]} 58... Rg2+ {[%clk 0:00:13.1]} 59. Kh4
{[%clk 0:00:03]} 59... h2 {[%clk 0:00:11.8]} 60. Re7+ {[%clk 0:00:03.5]} 60...
Kf5 {[%clk 0:00:11.4]} 61. Re1 {[%clk 0:00:03.6]} 61... Rg1 {[%clk 0:00:11.1]}
62. Rxg1 {[%clk 0:00:02.3]} 1/2-1/2